[Event "Smuk Skak GM Tournament 2024"]
[Site "Skanderborg"]
[Date "2024.08.20"]
[Round "4.5"]
[White "Aczel, Gergely"]
[Black "Kanov, Nikola"]
[Result "1/2-1/2"]
[ECO "E46"]
[WhiteElo "2485"]
[BlackElo "2414"]
[Annotator "TA"]
[PlyCount "196"]
[EventDate "2024.08.11"]
[EventType "tourn"]
[EventCountry "DEN"]
[SourceTitle "playchess.com"]
[Source "ChessBase"]
[SourceQuality "1"]
[TimeControl "40/5400+30:1800+30"]

{[%evp 11,196,2,3,0,14,12,16,16,18,16,20,20,15,9,8,5,1,6,0,0,8,8,13,0,0,0,0,0,0,-11,0,-5,-16,-29,0,-11,0,0,0,-14,9,0,9,0,0,0,51,35,37,47,46,39,45,56,61,52,65,69,55,60,74,0,0,-35,-22,-19,-20,-28,-28,-33,-24,-27,-21,-25,-18,-44,-49,-72,-60,-47,-40,-39,-85,-93,-37,-57,-37,-37,-37,-37,-37,-37,-37,-37,-37,-37,-39,-37,-8,-37,-37,-37,-37,-37,-37,-37,-37,-37,-37,-37,-37,-37,-37,-37,-37,-37,-37,-37,-37,-37,-37,-37,-37,-37,-37,-37,0,-37,-37,-37,-37,-37,-37,-37,-37,-37,-37,-37,-37,-37,-37,-37,-37,-37,-37,-37,-37,-37,-37,-37,-37,-37,-37,-37,-37,-37,0,-37,0,-37,0,0,0,0,0,0,0,0,0,0,0,0,0,0,0,0,0,0,0,0,0,0,0,0,0,0,0]} 1. d4 {[%emt 0:00:03]} Nf6 {[%emt 0:00:17]} 2. c4 {[%emt 0:00:08]} e6 {[%emt 0:00:10]} 3. Nc3 {[%emt 0:00:08]} Bb4 {[%emt 0:00:20]} 4. e3 {[%emt 0:00:06]} O-O {[%emt 0:00:26]} 5. Bd2 {[%emt 0:00:05]} d5 {[%emt 0:00:36]} 6. Nf3 {[%emt 0:00:08]} Nbd7 {[%emt 0:00:53]} 7. cxd5 {[%emt 0:01:20]} exd5 {[%emt 0:00:17]} 8. Qb3 {[%emt 0:00:06][%csl LRb4,LRd5] Dodges c6} c5 {[%emt 0:00:28]} 9. dxc5 {[%emt 0:00:07]} a5 {[%emt 0:00:23]} 10. Be2 {[%emt 0:00:07]} Nxc5 {[%emt 0:00:20]} (10... Bxc5 11. Nxd5 a4 12. Qc4 $16) 11. Qd1 {[%emt 0:00:09]} Nfe4 {[%emt 0:00:52]} 12. O-O {[%emt 0:00:54]} Bxc3 {[%emt 0:00:34]} 13. Bxc3 {[%emt 0:00:12]} Nxc3 {[%emt 0:00:11]} 14. bxc3 {[%emt 0:00:06]} b6 {[%emt 0:00:19]} 15. Rb1 {[%emt 0:06:02]} Bb7 {[%emt 0:15:11]} 16. Qd4 {[%emt 0:00:14]} Qc7 {[%emt 0:00:55]} 17. Rfc1 {[%emt 0:05:03]} Rfe8 {[%emt 0:06:24]} 18. h3 {[%emt 0:05:30]} Rad8 {[%emt 0:03:53]} 19. Bd3 {[%emt 0:12:29]} h6 {[%emt 0:08:39]} 20. Bc2 {[%emt 0:00:11]} Ba6 {[%emt 0:02:20]} 21. Rb2 {[%emt 0:23:04]} Rd6 {[%emt 0:08:38]} 22. Qd1 {[%emt 0:06:25]} Rf6 {[%emt 0:05:27]} 23. Nd4 {[%emt 0:00:36]} Qe5 {[%emt 0:08:51][%cal Of6f2]} 24. Nf3 {[%emt 0:03:13]} Qc7 {[%emt 0:04:44]} (24... Qxc3 $2 25. Bh7+ Kxh7 26. Rxc3 $18) 25. Nd4 {[%emt 0:00:42]} Bc8 {[%emt 0:05:28]} 26. Bb1 {[%emt 0:02:07]} Re5 {[%emt 0:02:33]} 27. Nf3 {[%emt 0:10:09]} Rh5 {[%emt 0:03:52]} 28. Rd2 {[%emt 0:00:23]} g6 {[%emt 0:03:09]} ({Better is} 28... Bxh3 $11 29. Rxd5 (29. gxh3 Qd7 $14) 29... Rxd5 30. Qxd5 Rd6) 29. Rxd5 $14 {[%emt 0:02:51]} Rxd5 {[%emt 0:07:25]} 30. Qxd5 {[%emt 0:00:02]} Bb7 {[%emt 0:02:15]} 31. Qe5 {[%emt 0:00:06]} Qxe5 {[%emt 0:03:44]} 32. Nxe5 {[%emt 0:00:02]} Rd6 {[%emt 0:00:10]} 33. Bc2 {[%emt 0:01:30]} Kg7 {[%emt 0:02:07]} 34. Nc4 {[%emt 0:12:40]} Rc6 {[%emt 0:00:10]} 35. Rb1 {[%emt 0:00:44]} Nd7 {[%emt 0:01:05]} 36. Bd3 {[%emt 0:06:23] White is more active.} ({White should play} 36. Bb3 $16) 36... Ba6 $11 {[%emt 0:01:04]} 37. Nb2 {[%emt 0:00:51]} (37. Ne5 Bxd3 (37... Nxe5 38. Bxa6 Rxc3 39. Rxb6 $14) 38. Nxd3 Rxc3 $15) (37. Rd1 $5) 37... Bxd3 {[%emt 0:00:12]} 38. Nxd3 {[%emt 0:00:07]} Rxc3 $15 {[%emt 0:00:05][%mdl 4096] Endgame. KRN-KRN} 39. Nf4 {[%emt 0:01:04]} Rc2 {[%emt 0:01:12]} 40. a3 {[%emt 0:00:02]} Ra2 {[%emt 0:01:40]} 41. Nd5 {[%emt 0:30:13]} Rxa3 {[%emt 0:30:15]} 42. Nxb6 {[%emt 0:00:03]} Ne5 {[%emt 0:02:54]} 43. f4 {[%emt 0:00:00]} Nd3 {[%emt 0:00:00]} 44. Kh2 {[%emt 0:00:00]} a4 {[%emt 0:00:00]} 45. Rd1 {[%emt 0:00:00][%cal Ob6a4]} Nb2 {[%emt 0:00:00][%csl LRd1,LRe3]} 46. Rb1 {[%emt 0:00:00]} Ra2 {[%emt 0:00:00]} ({Wrong is} 46... Rb3 $2 47. Nxa4 Rxe3 48. Rxb2 $18 (48. Nxb2 Rb3 $11)) 47. Nd5 {[%emt 0:00:00] [#] aiming for Nb4.} Nc4 {[%emt 0:00:00]} (47... Nd3 $1 $17 {Hoping for ...a3.} 48. Rd1 Nc5) 48. Rb4 $1 {[%emt 0:00:00]} Nd2 {[%emt 0:00:00] Strongly threatening ...Nf3+.} 49. Nc3 {[%emt 0:00:50][%csl LRa2,LRa4]} Rc2 {[%emt 0:00:00]} 50. Nxa4 {[%emt 0:00:02]} Nf1+ {[%emt 0:00:00]} 51. Kg1 {[%emt 0:00:12]} Nxe3 {[%emt 0:00:00]} 52. g4 {[%emt 0:00:09]} h5 {[%emt 0:00:00]} 53. gxh5 {[%emt 0:00:11]} gxh5 {[%emt 0:00:00]} 54. Rb5 {[%emt 0:00:29]} Rc4 {[%emt 0:00:00]} 55. Re5 {[%emt 0:03:05]} Rxa4 {[%emt 0:00:23]} 56. Rxe3 {[%emt 0:00:03]} Rxf4 {[%emt 0:00:06] KR-KR} 57. Kg2 $1 {[%emt 0:00:10]} Kg6 {[%emt 0:00:12]} 58. Re5 {[%emt 0:00:52]} Ra4 {[%emt 0:00:41]} 59. Kg3 {[%emt 0:02:09]} Ra3+ {[%emt 0:00:47]} 60. Kh4 {[%emt 0:01:10]} f6 {[%emt 0:00:11] [#] ( -> ...Ra4+)} 61. Rb5 {[%emt 0:00:11]} Re3 {[%emt 0:00:21]} 62. Rb4 {[%emt 0:01:14]} Re5 {[%emt 0:01:56]} 63. Rb3 {[%emt 0:01:05]} Re4+ {[%emt 0:00:16]} 64. Kg3 {[%emt 0:00:06]} Kg5 {[%emt 0:00:41]} 65. Rb5+ {[%emt 0:00:28]} Re5 {[%emt 0:00:11]} 66. h4+ {[%emt 0:00:56]} Kf5 {[%emt 0:00:25]} 67. Rb3 {[%emt 0:00:16]} Re4 {[%emt 0:01:51]} 68. Rb5+ {[%emt 0:00:07]} Re5 {[%emt 0:00:21]} 69. Rb3 {[%emt 0:00:08]} Rd5 {[%emt 0:02:06]} 70. Kf3 {[%emt 0:01:24]} Rd4 {[%emt 0:00:37]} 71. Rb5+ {[%emt 0:00:02]} Kg6 {[%emt 0:00:06]} 72. Kg3 {[%emt 0:00:11]} Rd3+ {[%emt 0:00:06]} 73. Kg2 {[%emt 0:00:12]} Ra3 {[%emt 0:00:35]} 74. Rc5 {[%emt 0:00:08]} Re3 {[%emt 0:00:46]} 75. Ra5 {[%emt 0:00:19]} Re5 {[%emt 0:00:45]} 76. Ra4 {[%emt 0:00:14]} Rb5 {[%emt 0:00:10]} 77. Ra3 {[%emt 0:01:47]} Kf5 {[%emt 0:00:49]} 78. Kf3 {[%emt 0:00:07]} Rc5 {[%emt 0:00:31]} 79. Rb3 {[%emt 0:00:03]} Ra5 {[%emt 0:00:04]} 80. Rc3 {[%emt 0:00:07]} Ra4 {[%emt 0:01:09]} 81. Rc5+ {[%emt 0:00:07]} Kg6 {[%emt 0:00:04]} 82. Kg3 {[%emt 0:00:05]} Rg4+ {[%emt 0:00:06]} 83. Kh3 {[%emt 0:00:05]} Ra4 {[%emt 0:01:13]} 84. Kg3 {[%emt 0:00:06]} Rg4+ {[%emt 0:00:23]} 85. Kh3 {[%emt 0:00:02]} f5 {[%emt 0:00:17]} 86. Rc6+ {[%emt 0:00:05] The position is equal.} Kg7 {[%emt 0:00:04]} 87. Rc7+ {[%emt 0:03:10]} Kf6 {[%emt 0:00:39]} 88. Rc6+ $1 {[%emt 0:00:05]} Kg7 {[%emt 0:00:15]} 89. Rc7+ {[%emt 0:00:06]} Kh6 {[%emt 0:00:23]} 90. Rc6+ {[%emt 0:00:47]} Rg6 {[%emt 0:00:06]} 91. Rc5 $1 {[%emt 0:01:04]} f4 {[%emt 0:00:09]} 92. Rf5 {[%emt 0:00:10]} Rg4 {[%emt 0:00:29]} 93. Rf6+ {[%emt 0:00:15]} Kg7 {[%emt 0:00:15]} 94. Rf5 {[%emt 0:00:06]} Kg6 {[%emt 0:00:33]} 95. Rf8 {[%emt 0:00:06]} Rg3+ {[%emt 0:00:09]} 96. Kh2 {[%emt 0:00:05]} Rg4 {[%emt 0:00:05]} 97. Kh3 {[%emt 0:00:06]} Rg3+ {[%emt 0:00:07]} 98. Kh2 {[%emt 0:00:05]} Rg4 {[%emt 0:00:03] Weighted Error Value: White=0.05 (flawless) /Black=0.06 (flawless) .  Mistake:       	White=1     	Black=2      Inaccurate:     	White=3     	Black=3      OK:         	White=30    	Black=37     Best:        	White=14    	Black=3      Strong:       	White=4     	---} 1/2-1/2

[Event "Smuk Skak GM Tournament 2024"]
[Site "Skanderborg"]
[Date "2024.08.21"]
[Round "5.1"]
[White "Olsen, Filip Boe"]
[Black "Pajeken, Jakob Leon"]
[Result "1/2-1/2"]
[ECO "A46"]
[WhiteElo "2431"]
[BlackElo "2416"]
[Annotator "RC"]
[PlyCount "102"]
[EventDate "2024.08.11"]
[EventType "tourn"]
[EventCountry "DEN"]
[SourceTitle "playchess.com"]
[Source "ChessBase"]
[SourceQuality "1"]
[TimeControl "40/5400+30:1800+30"]

1. d4 {[%emt 0:00:06]} Nf6 {[%emt 0:00:08]} 2. Nf3 {[%emt 0:00:09]} e6 {[%emt 0:00:10]} 3. Bf4 {[%emt 0:00:14]} d5 {[%emt 0:00:32]} 4. e3 {[%emt 0:00:07]} Bd6 {[%emt 0:00:11]} 5. Bxd6 {[%emt 0:00:21]} cxd6 {[%emt 0:00:53]} 6. c4 {[%emt 0:00:17]} dxc4 {[%emt 0:00:33]} 7. Bxc4 {[%emt 0:00:14]} O-O {[%emt 0:00:37]} 8. Nc3 {[%emt 0:02:19]} Nbd7 {[%emt 0:02:45]} 9. O-O {[%emt 0:03:59]} b6 {[%emt 0:01:00]} 10. Qe2 {[%emt 0:09:48]} Bb7 {[%emt 0:01:53]} 11. Rac1 {[%emt 0:14:22]} a6 {[%emt 0:02:29]} 12. a4 {[%emt 0:07:34]} Qe7 {[%emt 0:02:10]} 13. Rfd1 {[%emt 0:03:15]} Rfc8 {[%emt 0:02:34]} 14. Bd3 {[%emt 0:07:00]} e5 {[%emt 0:03:53]} 15. e4 {[%emt 0:04:24]} g6 {[%emt 0:09:36]} 16. Bc2 {[%emt 0:13:29]} Rc7 {[%emt 0:07:11]} 17. Rd2 {[%emt 0:00:56]} Re8 {[%emt 0:07:03]} 18. dxe5 {[%emt 0:01:45]} Nxe5 {[%emt 0:05:21]} 19. Nxe5 {[%emt 0:07:36]} Qxe5 {[%emt 0:00:50]} 20. Re1 {[%emt 0:05:42]} Rce7 {[%emt 0:06:30]} 21. Qe3 {[%emt 0:10:42]} Qa5 {[%emt 0:06:08]} 22. Rxd6 {[%emt 0:03:26]} Nxe4 {[%emt 0:00:33]} 23. Bxe4 {[%emt 0:00:21]} Bxe4 {[%emt 0:02:51]} 24. Qxb6 {[%emt 0:01:23]} Qg5 {[%emt 0:00:43]} 25. Nxe4 {[%emt 0:01:04]} Rxe4 {[%emt 0:00:05]} 26. Rf1 {[%emt 0:00:03]} Rxa4 {[%emt 0:06:40]} 27. g3 {[%emt 0:00:18]} Qb5 {[%emt 0:03:01]} 28. Rc1 {[%emt 0:00:47]} Ra2 {[%emt 0:04:35]} 29. Qxb5 {[%emt 0:01:21]} axb5 {[%emt 0:00:01]} 30. Rc7 {[%emt 0:00:42]} Re6 {[%emt 0:00:58]} 31. Rxe6 {[%emt 0:00:54]} fxe6 {[%emt 0:00:01]} 32. Re7 {[%emt 0:00:14]} Rxb2 {[%emt 0:00:14]} 33. Rxe6 {[%emt 0:00:02]} Rd2 {[%emt 0:01:13]} 34. Rb6 {[%emt 0:00:13]} Rd5 {[%emt 0:00:05]} 35. Rb7 {[%emt 0:00:04]} h5 {[%emt 0:00:18]} 36. Kg2 {[%emt 0:00:24]} Rf5 {[%emt 0:00:22]} 37. h3 {[%emt 0:00:18]} Kf8 {[%emt 0:00:17]} 38. g4 {[%emt 0:00:43]} hxg4 {[%emt 0:00:06]} 39. hxg4 {[%emt 0:00:04]} Rc5 {[%emt 0:00:07]} 40. Kg3 {[%emt 0:00:22]} g5 {[%emt 0:00:30]} 41. Kf3 {[%emt 0:31:26]} Re5 {[%emt 0:30:11]} 42. Kg3 {[%emt 0:00:43]} Ke8 {[%emt 0:00:21]} 43. f4 {[%emt 0:00:57]} Re3+ {[%emt 0:00:19]} 44. Kf2 {[%emt 0:00:06]} gxf4 {[%emt 0:00:04]} 45. Rxb5 {[%emt 0:00:09]} Rg3 {[%emt 0:00:07]} 46. Re5+ {[%emt 0:00:22]} Kd7 {[%emt 0:00:07]} 47. g5 {[%emt 0:00:32]} Kd6 {[%emt 0:00:09]} 48. Rf5 {[%emt 0:00:05]} Ke6 {[%emt 0:00:04]} 49. Rxf4 {[%emt 0:00:04]} Rxg5 {[%emt 0:00:03]} 50. Kf3 {[%emt 0:00:06]} Rf5 {[%emt 0:00:03]} 51. Rxf5 {[%emt 0:00:04]} Kxf5 {[%emt 0:00:02]} 1/2-1/2

[Event "Smuk Skak GM Tournament 2024"]
[Site "Skanderborg"]
[Date "2024.08.21"]
[Round "5.2"]
[White "Kosakowski, Jakub"]
[Black "Solodovnichenko, Yuri"]
[Result "1-0"]
[ECO "C45"]
[WhiteElo "2501"]
[BlackElo "2491"]
[Annotator "TA"]
[PlyCount "81"]
[EventDate "2024.08.11"]
[EventType "tourn"]
[EventCountry "DEN"]
[SourceTitle "playchess.com"]
[Source "ChessBase"]
[SourceQuality "1"]
[TimeControl "40/5400+30:1800+30"]

{[%evp 17,81,0,1,0,26,13,19,14,17,23,12,19,26,29,41,52,49,52,75,89,114,111,147,147,140,144,139,146,148,145,149,149,165,163,167,171,175,175,175,174,172,169,192,185,208,206,179,152,160,152,153,154,152,160,159,157,242,240,747,668,849,785,1056,711,640,598]} 1. e4 {[%emt 0:00:06]} e5 {[%emt 0:00:04]} 2. Nf3 {[%emt 0:00:11]} Nc6 {[%emt 0:00:05]} 3. d4 {[%emt 0:02:37]} exd4 {[%emt 0:00:09]} 4. Nxd4 {[%emt 0:00:05]} Nf6 {[%emt 0:04:35]} 5. Nxc6 {[%emt 0:00:22]} bxc6 {[%emt 0:00:06]} 6. Bd3 {[%emt 0:07:53]} d5 {[%emt 0:00:56]} 7. exd5 {[%emt 0:00:27]} cxd5 {[%emt 0:06:10]} 8. O-O {[%emt 0:01:25]} Be7 {[%emt 0:00:33]} 9. c4 {[%emt 0:01:23]} O-O {[%emt 0:00:28]} 10. Nc3 {[%emt 0:00:12]} Be6 {[%emt 0:03:58]} 11. cxd5 {[%emt 0:02:02]} Nxd5 {[%emt 0:00:12]} 12. Nxd5 {[%emt 0:00:08] The position is equal.} Qxd5 {[%emt 0:00:27]} 13. Qc2 {[%emt 0:00:25][%csl LRc7,LRh7]} Qh5 {[%emt 0:01:52]} 14. Bf4 {[%emt 0:05:50][%cal Of1d1,Bc1f4,Bf4d6,Bd6c5,Bc5e3][%mdl 32]} Bf6 {[%emt 0:05:29]} 15. Rad1 {[%emt 0:02:19]} c5 {[%emt 0:04:50][%cal Of6d4]} 16. Bd6 {[%emt 0:14:20]} Rfd8 {[%emt 0:07:18]} 17. Be2 {[%emt 0:10:25]} Qh6 {[%emt 0:06:38][%cal Od8d6] And now ...Rxd6! would win.} 18. Bxc5 {[%emt 0:06:27] Black is on the road to losing.} Bd5 {[%emt 0:27:26]} 19. Be3 {[%emt 0:03:25]} Qg6 {[%emt 0:07:38]} 20. Qxg6 {[%emt 0:00:21]} hxg6 {[%emt 0:00:02] [#]} 21. Rxd5 {[%emt 0:00:46][%mdl 512]} Rxd5 {[%emt 0:00:04] [#]} 22. Bf3 $1 {[%emt 0:00:07] This pair of bishops is nice.} Rad8 {[%emt 0:00:07]} 23. Bxd5 {[%emt 0:00:06]} (23. Bxa7 Rd2 24. Bb6 R8d3 $19) 23... Rxd5 $16 {[%emt 0:00:02][%mdl 4096] Endgame. KRB-KRB} 24. b3 {[%emt 0:04:05]} ({Don't take} 24. Bxa7 $6 Ra5 25. Be3 Bxb2 $11) 24... a5 {[%emt 0:05:44]} 25. Rc1 {[%emt 0:09:23]} Bb2 {[%emt 0:02:31]} 26. Rc8+ {[%emt 0:06:45]} Kh7 {[%emt 0:00:02][%cal Rd5d1]} 27. Kf1 {[%emt 0:00:13]} Ba3 {[%emt 0:00:41]} 28. Ke2 {[%emt 0:01:01]} Bb4 {[%emt 0:01:31]} 29. Rc4 {[%emt 0:01:34]} g5 {[%emt 0:00:48]} 30. Rd4 {[%emt 0:00:57]} Re5 {[%emt 0:00:18]} 31. Kd3 {[%emt 0:01:02]} Kg6 {[%emt 0:00:17]} 32. h4 {[%emt 0:02:32]} gxh4 {[%emt 0:02:50]} 33. Rg4+ {[%emt 0:00:40]} Kf5 {[%emt 0:01:39]} 34. Rxg7 {[%emt 0:01:02]} Ke6 {[%emt 0:01:59]} 35. Rg5 {[%emt 0:05:16]} f5 {[%emt 0:00:38]} 36. Rg6+ {[%emt 0:00:16]} Kf7 {[%emt 0:03:57] [#]} (36... Kd7 $16 37. Rg7+ Ke6 38. Rg6+ Kf7) 37. Bd4 $1 $18 {[%emt 0:04:32]} Kxg6 $2 {[%emt 0:05:48]} (37... Re4 38. Rf6+ Ke8 39. Rxf5 Rg4 40. Re5+ Kf7) 38. Bxe5 {[%emt 0:00:06] White is clearly winning.} Kg5 {[%emt 0:00:10]} 39. Ke2 {[%emt 0:03:40]} Kg4 {[%emt 0:01:17]} 40. f3+ {[%emt 0:01:20]} Kg5 {[%emt 0:00:03]} 41. Bc7 {[%emt 0:30:25] Weighted Error Value: White=0.01 (flawless) /Black=0.15 (very precise) .  Mistake:       	---       	Black=2      Inaccurate:     	---       	Black=2      OK:         	White=20    	Black=7      Best:        	White=2     	Black=3      Strong:       	White=1     	---} 1-0

[Event "Smuk Skak GM Tournament 2024"]
[Site "Skanderborg"]
[Date "2024.08.21"]
[Round "5.3"]
[White "Fromm, Marius"]
[Black "Aczel, Gergely"]
[Result "1-0"]
[ECO "B13"]
[WhiteElo "2447"]
[BlackElo "2485"]
[Annotator "TA"]
[PlyCount "89"]
[EventDate "2024.08.11"]
[EventType "tourn"]
[EventCountry "DEN"]
[SourceTitle "playchess.com"]
[Source "ChessBase"]
[SourceQuality "1"]
[TimeControl "40/5400+30:1800+30"]

{[%evp 9,89,12,17,16,15,10,35,8,20,30,19,17,27,16,23,18,25,17,16,13,25,7,16,26,9,9,8,7,13,3,21,-8,0,-14,-20,-25,4,6,7,8,12,12,15,0,0,-10,139,145,157,154,164,166,157,160,151,138,489,494,721,480,473,465,700,694,733,742,718,716,29993,1791,2637,967,5208,5197,3419,2013,3175,3223,2248,2083,1770,1632]} 1. e4 {[%emt 0:00:04]} c6 {[%emt 0:00:33]} 2. d4 {[%emt 0:00:21]} d5 {[%emt 0:00:05]} 3. exd5 {[%emt 0:00:36]} cxd5 {[%emt 0:00:05]} 4. Nf3 {[%emt 0:00:07]} Nc6 {[%emt 0:00:25]} 5. c3 {[%emt 0:00:18]} Qc7 {[%emt 0:02:05]} 6. c4 {[%emt 0:04:48]} e6 {[%emt 0:03:11]} 7. Nc3 {[%emt 0:02:27]} Bb4 {[%emt 0:00:16]} 8. Bd3 {[%emt 0:03:53] White is slightly better.} dxc4 {[%emt 0:01:29]} 9. Bxc4 {[%emt 0:00:17]} Nf6 {[%emt 0:16:38]} 10. O-O {[%emt 0:00:18]} O-O {[%emt 0:00:19]} 11. Qe2 {[%emt 0:05:29]} (11. Bg5 $5) 11... Bxc3 {[%emt 0:13:04]} 12. bxc3 {[%emt 0:00:07]} b6 {[%emt 0:01:45]} 13. Bd3 {[%emt 0:07:09]} Bb7 {[%emt 0:00:16]} 14. Bg5 {[%emt 0:02:17]} Ne7 {[%emt 0:07:31]} 15. Ne5 {[%emt 0:12:14]} (15. c4 $5) 15... Ng6 {[%emt 0:00:17]} 16. c4 {[%emt 0:18:12]} Nxe5 {[%emt 0:22:46]} 17. dxe5 {[%emt 0:01:04]} Qc6 {[%emt 0:00:52][%csl Gb7][%cal Rc6g2]} 18. f3 {[%emt 0:00:03] Active counter play!} (18. exf6 $2 Qxg2#) 18... Qc5+ {[%emt 0:00:34]} 19. Kh1 {[%emt 0:00:10]} Nd7 {[%emt 0:01:14]} (19... h6 $5 20. Bxh6 (20. Bxf6 gxf6 21. exf6 Rac8 $11) 20... gxh6 $14) 20. Bf4 {[%emt 0:04:57]} (20. Bxh7+ $5 Kxh7 21. Qd3+ Kg8 22. Qxd7 $11) 20... Qd4 {[%emt 0:05:46]} 21. Bg3 {[%emt 0:00:29]} Nc5 {[%emt 0:00:19]} 22. Bc2 {[%emt 0:08:04]} Qc3 {[%emt 0:13:35]} 23. Rac1 {[%emt 0:02:09][%cal Oc2h7,Ba1c1,Bc1d1,Bd1d6][%mdl 32] Hoping for Bxh7+!} Qa3 {[%emt 0:00:03]} 24. Bh4 {[%emt 0:01:32]} Rfe8 {[%emt 0:01:16]} 25. Rcd1 $40 {[%emt 0:07:03][%mdl 128] White mounts an attack.} Qc3 {[%emt 0:00:15] Wards off Rd4} 26. Be1 {[%emt 0:03:38] This pair of bishops is nice.} Qa3 {[%emt 0:00:12]} 27. Bb1 {[%emt 0:00:15]} Qa4 {[%emt 0:00:23] [#]} (27... Rad8 $11) 28. Bh4 $1 $16 {[%emt 0:00:29]} Nd7 {[%emt 0:06:06]} 29. Bc2 {[%emt 0:04:10]} Qc6 {[%emt 0:00:02]} 30. Rd6 {[%emt 0:00:05]} Qc7 {[%emt 0:00:37][%cal Od7e5] [#]} 31. Bxh7+ $1 {[%emt 0:00:14][%mdl 512]} Kxh7 {[%emt 0:00:13]} 32. Qd3+ {[%emt 0:00:04]} Kg8 $2 {[%emt 0:00:11][%mdl 8192] Black cannot hold the game after this.} (32... Be4 $16 {is tougher.} 33. Qxe4+ Kg8) 33. Rxd7 $18 {[%emt 0:00:07]} Qc6 {[%emt 0:00:41] Black is weak on the dark squares} (33... Qxe5 $142 34. Rxb7 Rec8) 34. Qd4 {[%emt 0:05:36][%cal Oh4f6] Threatens to win with Bf6!} Ba6 {[%emt 0:00:44]} 35. Rc1 {[%emt 0:00:51]} Rec8 {[%emt 0:01:03] [#]} (35... Qc5 $142 36. Qf4 Qf8) 36. Qg4 $1 {[%emt 0:01:35][%cal Oh4f6] Threatening mate with Bf6!} Qc5 {[%emt 0:02:13]} 37. Bf6 {[%emt 0:00:08][%csl Gf6][%cal Rg4g7]} Qf8 {[%emt 0:00:06]} 38. Rd4 {[%emt 0:00:20] Qg3 would kill now.} Rc5 {[%emt 0:00:23] [#]} 39. Qh5 {[%emt 0:02:27]} gxf6 {[%emt 0:00:20] White is clearly winning.} 40. Rg4+ {[%emt 0:00:05]} Qg7 {[%emt 0:00:06]} 41. Rxg7+ {[%emt 0:30:13]} Kxg7 {[%emt 0:30:01]} 42. Qg4+ {[%emt 0:00:11]} Kh6 {[%emt 0:01:16]} 43. Qh4+ {[%emt 0:00:29]} Kg7 {[%emt 0:00:04]} 44. exf6+ {[%emt 0:00:10]} Kg6 {[%emt 0:00:05]} 45. Qe4+ {[%emt 0:00:07] Weighted Error Value: White=0.17 (very precise) /Black=0.53.  Loses game:     	---       	Black=1      Mistake:       	---       	Black=3      Inaccurate:     	White=2     	Black=1      OK:         	White=11    	Black=16     Best:        	White=4     	Black=1      Strong:       	White=1     	---} 1-0

[Event "Smuk Skak GM Tournament 2024"]
[Site "Skanderborg"]
[Date "2024.08.21"]
[Round "5.4"]
[White "Licznerski, Lukasz"]
[Black "Thybo, Jesper Sondergaard"]
[Result "1/2-1/2"]
[ECO "C67"]
[WhiteElo "2427"]
[BlackElo "2554"]
[Annotator "TA"]
[PlyCount "89"]
[EventDate "2024.08.11"]
[EventType "tourn"]
[EventCountry "DEN"]
[SourceTitle "playchess.com"]
[Source "ChessBase"]
[SourceQuality "1"]
[TimeControl "40/5400+30:1800+30"]

{[%evp 18,89,21,27,31,20,16,9,11,11,11,17,27,20,25,14,26,10,34,28,38,35,30,18,20,17,30,8,10,-1,-6,-8,0,2,8,5,29,33,27,25,29,17,30,33,41,32,33,27,21,22,30,17,20,30,29,25,35,18,28,19,20,31,30,0,0,0,0,0,0,0,0,0,0,0]} 1. e4 {[%emt 0:05:22]} e5 {[%emt 0:00:09]} 2. Nf3 {[%emt 0:00:27]} Nc6 {[%emt 0:00:07]} 3. Bb5 {[%emt 0:00:04]} Nf6 {[%emt 0:00:21][%cal Bg8f6,Bf6e4,Be4d6,Bd6f5][%mdl 32]} 4. O-O {[%emt 0:00:12][%cal Bh1f1,Bf1e1,Be1e5][%mdl 32]} Nxe4 {[%emt 0:00:14]} 5. Re1 {[%emt 0:00:28]} Nd6 {[%emt 0:00:15]} 6. Nxe5 {[%emt 0:00:03]} Be7 {[%emt 0:00:13]} 7. Bf1 {[%emt 0:00:07]} Nxe5 {[%emt 0:00:12]} 8. Rxe5 {[%emt 0:00:02]} O-O {[%emt 0:00:13]} 9. d4 {[%emt 0:01:08]} Bf6 {[%emt 0:00:11]} 10. Re1 {[%emt 0:00:04]} Nf5 {[%emt 0:00:33]} 11. d5 {[%emt 0:00:15]} Re8 {[%emt 0:00:34]} 12. Rxe8+ {[%emt 0:00:22]} Qxe8 {[%emt 0:00:05]} 13. Qd3 {[%emt 0:00:06]} d6 {[%emt 0:00:52]} 14. Nd2 {[%emt 0:00:03][%cal Bb1d2,Bd2e4,Be4g5][%mdl 32]} c6 {[%emt 0:02:13]} 15. Ne4 {[%emt 0:03:17] [#] Black must now prevent Nxf6+.} Be5 {[%emt 0:01:41]} 16. c3 {[%emt 0:02:09]} cxd5 {[%emt 0:24:05]} 17. Qxd5 {[%emt 0:03:07]} Ne7 {[%emt 0:00:23]} 18. Qb5 {[%emt 0:11:47]} (18. Nxd6 Nxd5 19. Nxe8 Be6 20. Nxg7 Kxg7 $17 (20... Bxg7 $2 21. Bd2 $19)) 18... Qxb5 {[%emt 0:11:03]} 19. Bxb5 {[%emt 0:00:03]} d5 {[%emt 0:00:10]} 20. Ng5 {[%emt 0:02:43]} Bf6 {[%emt 0:00:58]} 21. h3 {[%emt 0:06:14]} a6 {[%emt 0:07:42]} 22. Ba4 {[%emt 0:00:39]} Nc6 {[%emt 0:12:15]} 23. Be3 {[%emt 0:05:33]} Ne5 {[%emt 0:02:03]} 24. Bd4 {[%emt 0:06:21]} Nd3 {[%emt 0:04:21] Wards off Re1} 25. Bc2 {[%emt 0:04:02] Hoping for Bxf6.} Nxb2 {[%emt 0:03:22] [#]} (25... Bxd4 {simplifies} 26. Bxd3 Bf6 27. f4 g6) 26. Re1 $1 {[%emt 0:01:35][%cal Re1e8]} Bf5 {[%emt 0:03:53]} (26... Bd7 27. Bxf6) 27. Bxf5 {[%emt 0:06:07] aiming for Bxf6.} Bxg5 {[%emt 0:00:05]} 28. Re5 {[%emt 0:00:07]} ({Don't play} 28. Rb1 $6 Nc4 $16) 28... Bf6 {[%emt 0:05:58]} 29. Rxd5 {[%emt 0:00:36]} Na4 {[%emt 0:00:24]} 30. Bxf6 {[%emt 0:13:14]} gxf6 $11 {[%emt 0:00:04][%mdl 4096] Endgame. KRB-KRN} 31. c4 {[%emt 0:00:10]} Re8 {[%emt 0:01:51]} 32. Rd7 {[%emt 0:04:30]} b6 {[%emt 0:01:33]} 33. Bg4 {[%emt 0:04:01]} Kf8 {[%emt 0:01:26]} 34. Kf1 {[%emt 0:02:00]} Re7 {[%emt 0:03:28]} 35. Rd6 {[%emt 0:01:21]} Kg7 {[%emt 0:02:37]} 36. Bf3 {[%emt 0:04:50]} a5 {[%emt 0:01:38]} 37. a3 {[%emt 0:00:58]} Rc7 {[%emt 0:01:28]} 38. Bd5 {[%emt 0:03:50]} Nb2 {[%emt 0:03:35]} 39. Rxb6 {[%emt 0:00:43]} Nxc4 {[%emt 0:00:08]} 40. Bxc4 {[%emt 0:00:27]} Rxc4 {[%emt 0:00:06] KR-KR. The position is equal.} 41. Rb5 {[%emt 0:35:13]} Ra4 {[%emt 0:30:39]} 42. Rb3 {[%emt 0:00:02]} Re4 {[%emt 0:02:40]} 43. Rb5 {[%emt 0:00:00]} Ra4 {[%emt 0:00:00]} 44. Rb3 {[%emt 0:00:00]} Re4 {[%emt 0:00:00]} 45. Rb5 {[%emt 0:00:00] Weighted Error Value: White=0.05 (flawless) /Black=0.04 (flawless) .  Inaccurate:     	White=1     	---        OK:         	White=15    	Black=16} 1/2-1/2